fUSD/lending_fUSD_20250326
["ID","MTS","AMOUNT","RATE_DAILY","PERIOD"]
[356710254,1743000646281,-500.0,0.00027397,2]
[356710255,1743000646291,-219.60706052,0.00027397,2]
[356710256,1743000646300,-509.8617555,0.00027397,2]
[356710257,1743000646309,-500.0,0.00027397,2]
[356710258,1743000646318,-500.0,0.00027397,2]
[356710259,1743000646327,-500.0,0.00027397,2]
[356710260,1743000646336,-500.0,0.00027397,2]
[356710261,1743000646345,-500.0,0.00027397,2]
[356710262,1743000646354,-500.0,0.00027397,2]
[356710263,1743000646363,-1157.22,0.00027397,2]
[356710264,1743000646373,-500.0,0.00027397,2]
[356710265,1743000646382,-535.92024584,0.00027397,2]
[356710266,1743000646391,-500.0,0.00027397,2]
[356710267,1743000646401,-500.0,0.00027397,2]
[356710268,1743000646410,-565.83,0.00027397,2]
[356710269,1743000646420,-565.83,0.00027397,2]
[356710270,1743000646429,-565.83,0.00027397,2]
[356710271,1743000646439,-500.0,0.00027397,2]
[356710272,1743000646448,-565.83,0.00027397,2]
[356710273,1743000646460,-316.91949872,0.00027397,2]
[356710274,1743000646470,-262.97,0.00027397,2]
[356710275,1743000646479,-1500.0,0.00027397,60]
[356710276,1743000646488,-150.73,0.00027405,2]
[356710277,1743000646498,-443.26792051,0.00027432,2]
[356710278,1743000646507,-150.73,0.00027469,2]
[356710279,1743000646516,-150.73,0.00027533,2]
[356710280,1743000646527,-184.49,0.00027534,2]
[356710282,1743000646538,-150.73,0.00027597,2]
[356710284,1743000646548,-18443.9157778,0.00027608,3]
[356710286,1743000646557,-654.75,0.00027617,2]
[356710288,1743000646567,-36887.8315556,0.00027651,3]
[356710290,1743000646576,-12910.4612783,0.00027651,3]
[356710292,1743000646585,-305.04750933,0.00027651,2]
[356710294,1743000646595,-150.0,0.0002766,2]
[356710296,1743000646604,-565.83,0.0002766,2]
[356710298,1743000646614,-150.73,0.00027661,2]
[356710299,1743000646624,-110663.494667,0.00027661,3]
[356710300,1743000646633,-41313.4760906,0.00027661,3]
[356710301,1743000646643,-565.83,0.0002767,2]
[356710302,1743000646653,-916.96719412,0.00027671,2]
[356710303,1743000646662,-500.0,0.00027671,2]
[356710304,1743000646672,-508.9444082,0.00027671,2]
[356710305,1743000646681,-500.0,0.00027671,2]
[356710306,1743000646690,-500.0,0.00027671,2]
[356710307,1743000646700,-524.53222655,0.00027671,2]
[356710308,1743000646709,-500.0,0.00027671,2]
[356710309,1743000646718,-500.0,0.00027671,2]
[356710310,1743000646727,-648.17,0.00027671,2]
[356710311,1743000646737,-500.0,0.00027671,2]
[356710312,1743000646746,-777.44,0.00027671,2]
[356710313,1743000646755,-500.0,0.00027671,2]
[356710314,1743000646765,-500.0,0.00027671,2]
[356710315,1743000646776,-548.6691597,0.00027671,2]
[356710316,1743000646785,-500.0,0.00027671,2]
[356710317,1743000646795,-500.0,0.00027671,2]
[356710318,1743000646803,-571.8801088,0.00027671,2]
[356710319,1743000646814,-500.0,0.00027671,2]
[356710320,1743000646824,-500.0,0.00027671,2]
[356710321,1743000646833,-500.0,0.00027671,2]
[356710322,1743000646843,-610.38738232,0.00027671,2]
[356710323,1743000646852,-512.64478606,0.00027671,2]
[356710324,1743000646861,-500.0,0.00027671,2]
[356710325,1743000646870,-500.0,0.00027671,2]
[356710326,1743000646880,-500.0,0.00027671,2]
[356710327,1743000646889,-500.0,0.00027671,2]
[356710328,1743000646898,-500.0,0.00027671,2]
[356710329,1743000646907,-532.3585093,0.00027671,2]
[356710330,1743000646917,-500.0,0.00027671,2]
[356710331,1743000646927,-500.0,0.00027671,2]
[356710332,1743000646936,-500.0,0.00027671,2]
[356710333,1743000646946,-500.0,0.00027671,2]
[356710334,1743000646955,-532.79315405,0.00027671,2]
[356710335,1743000646964,-500.0,0.00027671,2]
[356710336,1743000646974,-2763.61,0.00027671,2]
[356710337,1743000646983,-508.87335873,0.00027671,2]
[356710338,1743000646992,-2000.0,0.00027671,2]
[356710339,1743000647002,-500.0,0.00027671,2]
[356710340,1743000647011,-500.0,0.00027671,2]
[356710341,1743000647021,-505.52900637,0.00027671,2]
[356710342,1743000647033,-500.0,0.00027671,2]
[356710343,1743000647042,-500.0,0.00027671,2]
[356710344,1743000647051,-8280.89,0.00027671,2]
[356710345,1743000647060,-500.0,0.00027671,2]
[356710346,1743000647070,-618.35387748,0.00027671,2]
[356710347,1743000647079,-500.0,0.00027671,2]
[356710348,1743000647088,-500.0,0.00027671,2]
[356710349,1743000647098,-505.55659879,0.00027671,2]
[356710350,1743000647107,-500.0,0.00027671,2]
[356710351,1743000647117,-500.0,0.00027671,2]
[356710352,1743000647126,-500.0,0.00027671,2]
[356710353,1743000647136,-500.0,0.00027671,2]
[356710354,1743000647145,-500.0,0.00027671,2]
[356710355,1743000647155,-564.17259079,0.00027671,2]
[356710356,1743000647164,-500.0,0.00027671,2]
[356710357,1743000647173,-551.09846942,0.00027671,2]
[356710358,1743000647183,-500.0,0.00027671,2]
[356710359,1743000647192,-500.0,0.00027671,2]
[356710360,1743000647201,-500.0,0.00027671,2]
[356710361,1743000647211,-500.0,0.00027671,2]
[356710362,1743000647220,-587.95555762,0.00027671,2]
[356710363,1743000647337,-500.0,0.00027671,2]
[356710364,1743000647347,-500.0,0.00027671,2]
[356710365,1743000647357,-500.0,0.00027671,2]
[356710366,1743000647367,-500.0,0.00027671,2]
[356710367,1743000647377,-500.0,0.00027671,2]
[356710368,1743000647386,-500.0,0.00027671,2]
[356710369,1743000647395,-512.67933452,0.00027671,2]
[356710370,1743000647405,-500.0,0.00027671,2]
[356710371,1743000647415,-515.9085802,0.00027671,2]
[356710372,1743000647424,-630.63,0.00027671,2]
[356710373,1743000647433,-503.31150242,0.00027671,2]
[356710374,1743000647444,-500.0,0.00027671,2]
[356710375,1743000647456,-517.78,0.00027671,2]
[356710376,1743000647465,-500.0,0.00027671,2]
[356710377,1743000647474,-503.79458235,0.00027671,2]
[356710378,1743000647484,-502.74577972,0.00027671,2]
[356710379,1743000647495,-506.68970794,0.00027671,2]
[356710380,1743000647504,-500.0,0.00027671,2]
[356710381,1743000647514,-513.74431031,0.00027671,2]
[356710382,1743000647526,-500.0,0.00027671,2]
[356710383,1743000647535,-500.0,0.00027671,2]
[356710384,1743000647544,-219.40979998,0.00027671,2]
[356710385,1743000647554,-530.07660982,0.00027671,2]
[356710386,1743000647564,-500.0,0.00027671,2]
[356710387,1743000647574,-501.955293,0.00027671,2]
[356710388,1743000647583,-500.0,0.00027671,2]
[356710389,1743000647593,-358.019512,0.00027671,2]
[356710390,1743000647602,-313.39057249,0.00027671,2]
[356710391,1743000647611,-500.0,0.00027671,2]
[356710392,1743000647620,-500.0,0.00027671,2]
[356710393,1743000647630,-546.41809604,0.00027671,2]
[356710394,1743000647640,-516.46263013,0.00027671,2]
[356710395,1743000647651,-514.58635573,0.00027671,2]
[356710396,1743000647661,-500.0,0.00027671,2]
[356710397,1743000647671,-500.0,0.00027671,2]
[356710398,1743000647680,-173.65991077,0.00027671,2]
[356710399,1743000647690,-500.0,0.00027671,2]
[356710400,1743000647699,-531.13064072,0.00027671,2]
[356710401,1743000647710,-500.0,0.00027671,2]
[356710402,1743000647721,-545.01814264,0.00027671,2]
[356710403,1743000647730,-500.0,0.00027671,2]
[356710404,1743000647739,-500.0,0.00027671,2]
[356710405,1743000647749,-517.65052268,0.00027671,2]
[356710406,1743000647759,-500.0,0.00027671,2]
[356710407,1743000647769,-500.0,0.00027671,2]
[356710408,1743000647779,-569.4947662,0.00027671,2]
[356710409,1743000647789,-570.50410883,0.00027671,2]
[356710410,1743000647798,-523.52243793,0.00027671,2]
[356710411,1743000647808,-520.70895856,0.00027671,2]
[356710412,1743000647817,-500.0,0.00027671,2]
[356710413,1743000647826,-375.48492573,0.00027671,2]
[356710414,1743000647836,-510.12810878,0.00027671,2]
[356710415,1743000647845,-499.18166919,0.00027671,2]
[356710416,1743000647854,-157.68791187,0.00027671,2]
[356710417,1743000647863,-293.49594579,0.00027671,2]
[356710418,1743000647873,-529.60817785,0.00027671,2]
[356710419,1743000647883,-545.88813459,0.00027671,2]
[356710420,1743000647892,-516.46793842,0.00027671,2]
[356710421,1743000647901,-500.0,0.00027671,2]
[356710422,1743000647911,-530.66331949,0.00027671,2]
[356710423,1743000647921,-532.42035821,0.00027671,2]
[356710424,1743000647930,-562.82501223,0.00027671,2]
[356710425,1743000647939,-500.0,0.00027671,2]
[356710426,1743000647949,-500.0,0.00027671,2]
[356710427,1743000647958,-500.0,0.00027671,2]
[356710428,1743000647967,-539.59177928,0.00027671,2]
[356710429,1743000647976,-508.9018066,0.00027671,2]
[356710430,1743000647986,-523.27279348,0.00027671,2]
[356710431,1743000647995,-500.0,0.00027671,2]
[356710432,1743000648004,-521.63146101,0.00027671,2]
[356710433,1743000648014,-618.95686394,0.00027671,2]
[356710434,1743000648024,-527.43752006,0.00027671,2]
[356710435,1743000648033,-520.97869322,0.00027671,2]
[356710436,1743000648042,-500.0,0.00027671,2]
[356710437,1743000648052,-505.53471897,0.00027671,2]
[356710438,1743000648061,-516.71817855,0.00027671,2]
[356710439,1743000648071,-546.34976766,0.00027671,2]
[356710440,1743000648080,-537.65208727,0.00027671,2]
[356710441,1743000648089,-532.88038421,0.00027671,2]
[356710442,1743000648099,-500.0,0.00027671,2]
[356710443,1743000648108,-531.53180425,0.00027671,2]
[356710444,1743000648117,-517.12876781,0.00027671,2]
[356710445,1743000648127,-556.2234677,0.00027671,2]
[356710446,1743000648136,-500.0,0.00027671,2]
[356710447,1743000648146,-517.16638111,0.00027671,2]
[356710448,1743000648156,-541.76296616,0.00027671,2]
[356710449,1743000648165,-500.0,0.00027671,2]
[356710450,1743000648175,-500.0,0.00027671,2]
[356710451,1743000648185,-509.99591798,0.00027671,2]
[356710452,1743000648195,-241.03105569,0.00027671,2]
[356710453,1743000648206,-567.70803689,0.00027671,2]
[356710454,1743000648215,-516.74483996,0.00027671,2]
[356710455,1743000648225,-529.04486773,0.00027671,2]
[356710456,1743000648235,-556.33474664,0.00027671,2]
[356710457,1743000648245,-509.70402578,0.00027671,2]
[356710458,1743000648255,-536.43758442,0.00027671,2]
[356710459,1743000648264,-500.0,0.00027671,2]
[356710460,1743000648276,-520.38793627,0.00027671,2]
[356710461,1743000648286,-517.47391721,0.00027671,2]
[356710462,1743000648296,-514.14746362,0.00027671,2]
[356710463,1743000648307,-511.56877356,0.00027671,2]
[356710464,1743000648317,-533.14039129,0.00027671,2]
[356710465,1743000648327,-500.0,0.00027671,2]
[356710466,1743000648337,-509.3534839,0.00027671,2]
[356710467,1743000648347,-387.40732733,0.00027671,2]
[356710468,1743000648356,-512.1530916,0.00027671,2]
[356710469,1743000648366,-525.72211133,0.00027671,2]
[356710470,1743000648375,-507.5912052,0.00027671,2]
[356710471,1743000648386,-529.99920775,0.00027671,2]
[356710472,1743000648395,-500.0,0.00027671,2]
[356710473,1743000648405,-516.97218147,0.00027671,2]
[356710474,1743000648414,-525.76486975,0.00027671,2]
[356710475,1743000648423,-500.0,0.00027671,2]
[356710476,1743000648433,-520.82264275,0.00027671,2]
[356710477,1743000648443,-640.8075421,0.00027671,2]
[356710478,1743000648453,-546.5715283,0.00027671,2]
[356710479,1743000648466,-355.97774577,0.00027671,2]
[356710480,1743000648476,-597.24235803,0.00027671,2]
[356710481,1743000648487,-515.86903509,0.00027671,2]
[356710482,1743000648496,-552.03574247,0.00027671,2]
[356710483,1743000648506,-558.82316659,0.00027671,2]
[356710484,1743000648515,-500.0,0.00027671,2]
[356710485,1743000648526,-150.51066445,0.00027671,2]
[356710486,1743000648537,-510.35694043,0.00027671,2]
[356710487,1743000648547,-524.9502143,0.00027671,2]
[356710488,1743000648557,-510.77106901,0.00027671,2]
[356710489,1743000648567,-622.18,0.00027671,2]
[356710490,1743000648577,-504.07971594,0.00027671,2]
[356710491,1743000648587,-534.91190966,0.00027671,2]
[356710492,1743000648596,-500.0,0.00027671,2]
[356710493,1743000648605,-500.0,0.00027671,2]
[356710494,1743000648615,-599.6520463,0.00027671,2]
[356710495,1743000648624,-533.66438419,0.00027671,2]
[356710496,1743000648633,-523.28274868,0.00027671,2]
[356710497,1743000648643,-525.31558054,0.00027671,2]
[356710498,1743000648652,-518.27886207,0.00027671,2]
[356710499,1743000648662,-515.89281661,0.00027671,2]
[356710500,1743000648672,-530.73761277,0.00027671,2]
[356710501,1743000648683,-549.18194399,0.00027671,2]
[356710502,1743000648692,-500.0,0.00027671,2]
[356710503,1743000648702,-536.16850214,0.00027671,2]
[356710504,1743000648712,-500.0,0.00027671,2]
[356710505,1743000648721,-500.0,0.00027671,2]
[356710506,1743000648731,-533.62262998,0.00027671,2]
[356710507,1743000648740,-500.0,0.00027671,2]
[356710508,1743000648750,-522.80985451,0.00027671,2]
[356710509,1743000648761,-546.08839776,0.00027671,2]
[356710510,1743000648770,-306.16825063,0.00027671,2]
[356710511,1743000648781,-520.06405946,0.00027671,2]
[356710512,1743000648791,-537.80815055,0.00027671,2]
[356710513,1743000648801,-574.01103675,0.00027671,2]
[356710514,1743000648810,-512.51048575,0.00027671,2]
[356710515,1743000648820,-500.0,0.00027671,2]
[356710516,1743000648829,-506.74068501,0.00027671,2]
[356710517,1743000648839,-500.0,0.00027671,2]
[356710518,1743000648849,-524.15313806,0.00027671,2]
[356710519,1743000648858,-514.49704768,0.00027671,2]
[356710520,1743000648868,-501.12663796,0.00027671,2]
[356710521,1743000648878,-510.92228911,0.00027671,2]
[356710522,1743000648888,-517.64778934,0.00027671,2]
[356710523,1743000648897,-7298.39,0.00027671,2]
[356710524,1743000648906,-514.93371855,0.00027671,2]
[356710525,1743000648916,-518.87587172,0.00027671,2]
[356710526,1743000648925,-2936.08,0.00027671,2]
[356710527,1743000648935,-539.71964562,0.00027671,2]
[356710528,1743000648944,-500.0,0.00027671,2]
[356710529,1743000648953,-562.62903159,0.00027671,2]
[356710530,1743000648963,-500.0,0.00027671,2]
[356710531,1743000648973,-519.04070606,0.00027671,2]
[356710532,1743000648982,-500.0,0.00027671,2]
[356710533,1743000648993,-586.13080574,0.00027671,2]
[356710534,1743000649002,-519.57583675,0.00027671,2]
[356710535,1743000649011,-538.54028562,0.00027671,2]
[356710536,1743000649021,-500.0,0.00027671,2]
[356710537,1743000649031,-533.07110368,0.00027671,2]
[356710538,1743000649041,-500.0,0.00027671,2]
[356710539,1743000649051,-522.94214539,0.00027671,2]
[356710540,1743000649061,-500.0,0.00027671,2]
[356710541,1743000649071,-546.33579936,0.00027671,2]
[356710542,1743000649080,-533.00262295,0.00027671,2]
[356710543,1743000649090,-500.0,0.00027671,2]
[356710544,1743000649099,-500.0,0.00027671,2]
[356710545,1743000649109,-503.12864074,0.00027671,2]
[356710546,1743000649119,-524.61805557,0.00027671,2]
[356710547,1743000649128,-500.0,0.00027671,2]
[356710548,1743000649138,-500.0,0.00027671,2]
[356710549,1743000649148,-517.45024969,0.00027671,2]
[356710550,1743000649158,-520.42250546,0.00027671,2]
[356710551,1743000649168,-531.15526789,0.00027671,2]
[356710552,1743000649177,-500.0,0.00027671,2]
[356710553,1743000649187,-531.36897337,0.00027671,2]
[356710554,1743000649197,-544.15427527,0.00027671,2]
[356710555,1743000649207,-513.95916734,0.00027671,2]
[356710556,1743000649217,-1756.69,0.00027671,2]
[356710557,1743000649227,-520.00438513,0.00027671,2]
[356710558,1743000649237,-515.37372669,0.00027671,2]
[356710559,1743000649247,-512.26842362,0.00027671,2]
[356710560,1743000649257,-508.72358675,0.00027671,2]
[356710561,1743000649267,-500.0,0.00027671,2]
[356710562,1743000649277,-500.0,0.00027671,2]
[356710563,1743000649287,-526.91,0.00027671,2]
[356710564,1743000649297,-500.0,0.00027671,2]
[356710565,1743000649307,-548.9412412,0.00027671,2]
[356710566,1743000649318,-500.0,0.00027671,2]
[356710567,1743000649328,-500.0,0.00027671,2]
[356710568,1743000649338,-500.0,0.00027671,2]
[356710569,1743000649349,-620.34447457,0.00027671,2]
[356710570,1743000649359,-519.9338892,0.00027671,2]
[356710571,1743000649370,-525.3908949,0.00027671,2]
[356710572,1743000649381,-158.35182839,0.00027671,2]
[356710573,1743000649391,-500.0,0.00027671,2]
[356710574,1743000649513,-500.0,0.00027671,2]
[356710575,1743000649525,-232.35280364,0.00027671,2]
[356710576,1743000649535,-500.0,0.00027671,2]
[356710577,1743000649545,-500.0,0.00027671,2]
[356710578,1743000649555,-500.0,0.00027671,2]
[356710579,1743000649565,-500.0,0.00027671,2]
[356710580,1743000649574,-500.0,0.00027671,2]
[356710581,1743000649584,-500.0,0.00027671,2]
[356710582,1743000649594,-623.40611656,0.00027671,2]
[356710583,1743000649604,-500.0,0.00027671,2]
[356710584,1743000649614,-530.25438561,0.00027671,2]
[356710585,1743000649624,-163.18010581,0.00027671,2]
[356710586,1743000649634,-500.0,0.00027671,2]
[356710587,1743000649644,-500.0,0.00027671,2]
[356710588,1743000649653,-512.00452655,0.00027671,2]
[356710589,1743000649663,-500.0,0.00027671,2]
[356710590,1743000649673,-500.0,0.00027671,2]
[356710591,1743000649683,-205.70994384,0.00027671,2]
[356710592,1743000649692,-530.4119159,0.00027671,2]
[356710593,1743000649702,-500.0,0.00027671,2]
[356710594,1743000649713,-500.0,0.00027671,2]
[356710595,1743000649722,-500.0,0.00027671,2]
[356710596,1743000649733,-517.98668646,0.00027671,2]
[356710597,1743000649743,-500.0,0.00027671,2]
[356710598,1743000649753,-500.0,0.00027671,2]
[356710599,1743000649763,-500.0,0.00027671,2]
[356710600,1743000649774,-997.97,0.00027671,2]
[356710601,1743000649784,-500.0,0.00027671,2]
[356710602,1743000649794,-500.0,0.00027671,2]
[356710603,1743000649803,-500.0,0.00027671,2]
[356710604,1743000649813,-500.0,0.00027671,2]
[356710605,1743000649823,-500.0,0.00027671,2]
[356710606,1743000649832,-500.0,0.00027671,2]
[356710607,1743000649841,-5691.93,0.00027671,2]
[356710608,1743000649851,-500.0,0.00027671,2]
[356710609,1743000649861,-500.0,0.00027671,2]
[356710610,1743000649871,-500.0,0.00027671,2]
[356710611,1743000649880,-500.0,0.00027671,2]
[356710612,1743000649890,-500.0,0.00027671,2]
[356710613,1743000649899,-500.0,0.00027671,2]
[356710614,1743000649909,-1045.37,0.00027671,2]
[356710615,1743000649921,-500.0,0.00027671,2]
[356710616,1743000649937,-500.0,0.00027671,2]
[356710617,1743000649947,-500.0,0.00027671,2]
[356710618,1743000649956,-500.0,0.00027671,2]
[356710619,1743000649966,-500.0,0.00027671,2]
[356710620,1743000649975,-548.10337438,0.00027671,2]
[356710621,1743000649985,-500.0,0.00027671,2]
[356710622,1743000649995,-513.61,0.00027671,2]
[356710623,1743000650004,-500.0,0.00027671,2]
[356710624,1743000650013,-1360.65,0.00027671,2]
[356710625,1743000650023,-500.0,0.00027671,2]
[356710626,1743000650033,-525.07939025,0.00027671,2]
[356710627,1743000650043,-500.0,0.00027671,2]
[356710628,1743000650054,-524.39554277,0.00027671,2]
[356710629,1743000650066,-500.0,0.00027671,2]
[356710630,1743000650288,-500.0,0.00027671,2]
[356710631,1743000650299,-500.0,0.00027671,2]
[356710632,1743000650309,-500.0,0.00027671,2]
[356710633,1743000650319,-500.0,0.00027671,2]
[356710634,1743000650329,-382.87877108,0.00027671,2]
[356710635,1743000650339,-500.0,0.00027671,2]
[356710636,1743000650349,-500.0,0.00027671,2]
[356710637,1743000650359,-500.0,0.00027671,2]
[356710638,1743000650369,-500.0,0.00027671,2]
[356710639,1743000650379,-1415.07,0.00027671,2]
[356710640,1743000650389,-558.28110432,0.00027671,2]
[356710641,1743000650399,-5712.77,0.00027671,2]
[356710642,1743000650409,-538.13,0.00027671,2]
[356710643,1743000650419,-500.0,0.00027671,2]
[356710644,1743000650428,-569.50211706,0.00027671,2]
[356710645,1743000650438,-500.0,0.00027671,2]
[356710646,1743000650449,-212.33731509,0.00027671,2]
[356710647,1743000650462,-500.0,0.00027671,2]
[356710648,1743000650472,-500.0,0.00027671,2]
[356710649,1743000650482,-559.09476287,0.00027671,2]
[356710650,1743000650492,-500.0,0.00027671,2]
[356710651,1743000650502,-232.05861187,0.00027671,2]
[356710652,1743000650512,-509.07341267,0.00027671,2]
[356710653,1743000650521,-500.0,0.00027671,2]
[356710654,1743000650534,-500.0,0.00027671,2]
[356710655,1743000650544,-500.0,0.00027671,2]
[356710656,1743000650553,-500.0,0.00027671,2]
[356710657,1743000650563,-529.4949958,0.00027671,2]
[356710658,1743000650573,-500.0,0.00027671,2]
[356710659,1743000650582,-500.0,0.00027671,2]
[356710660,1743000650592,-592.75,0.00027671,2]
[356710661,1743000650602,-500.0,0.00027671,2]
[356710662,1743000650611,-500.0,0.00027671,2]
[356710663,1743000650621,-602.98093263,0.00027671,2]
[356710664,1743000650630,-500.0,0.00027671,2]
[356710665,1743000650640,-500.0,0.00027671,2]
[356710666,1743000650649,-432.45187169,0.00027671,2]
[356710667,1743000650659,-500.0,0.00027671,2]
[356710668,1743000650669,-500.0,0.00027671,2]
[356710669,1743000650678,-500.0,0.00027671,2]
[356710670,1743000650688,-500.0,0.00027671,2]
[356710671,1743000650697,-500.0,0.00027671,2]
[356710672,1743000650706,-500.0,0.00027671,2]
[356710673,1743000650716,-500.0,0.00027671,2]
[356710674,1743000650725,-500.0,0.00027671,2]
[356710675,1743000650735,-500.0,0.00027671,2]
[356710676,1743000650744,-508.77040963,0.00027671,2]
[356710677,1743000650753,-500.0,0.00027671,2]
[356710678,1743000650763,-500.0,0.00027671,2]
[356710679,1743000650773,-4204.32,0.00027671,2]
[356710680,1743000650783,-500.0,0.00027671,2]
[356710681,1743000650793,-500.0,0.00027671,2]
[356710682,1743000650802,-500.0,0.00027671,2]
[356710683,1743000650811,-61058.61,0.00027671,2]
[356710684,1743000650821,-500.0,0.00027671,2]
[356710685,1743000650830,-500.0,0.00027671,2]
[356710686,1743000650840,-500.0,0.00027671,2]
[356710687,1743000650849,-500.0,0.00027671,2]
[356710688,1743000650859,-602.87856384,0.00027671,2]
[356710689,1743000650868,-500.0,0.00027671,2]
[356710690,1743000650878,-500.0,0.00027671,2]
[356710691,1743000650887,-500.0,0.00027671,2]
[356710692,1743000650897,-500.0,0.00027671,2]
[356710693,1743000650906,-500.0,0.00027671,2]
[356710694,1743000650916,-500.0,0.00027671,2]
[356710695,1743000650925,-348.62530839,0.00027671,2]
[356710696,1743000650934,-500.0,0.00027671,2]
[356710697,1743000650943,-500.0,0.00027671,2]
[356710698,1743000650953,-479.7781374,0.00027671,2]
[356710699,1743000650962,-500.0,0.00027671,2]
[356710700,1743000650972,-500.0,0.00027671,2]
[356710701,1743000650982,-500.0,0.00027671,2]
[356710702,1743000650992,-500.0,0.00027671,2]
[356710703,1743000651002,-500.0,0.00027671,2]
[356710704,1743000651013,-500.0,0.00027671,2]
[356710705,1743000651023,-519.88347966,0.00027671,2]
[356710706,1743000651034,-500.0,0.00027671,2]
[356710707,1743000651044,-1257.4,0.00027671,2]
[356710708,1743000651053,-500.0,0.00027671,2]
[356710709,1743000651063,-157.178502,0.00027671,7]
[356710710,1743000651072,-500.0,0.00027671,2]
[356710711,1743000651082,-500.0,0.00027671,2]
[356710712,1743000651092,-500.0,0.00027671,2]
[356710713,1743000651101,-507.61443898,0.00027671,2]
[356710714,1743000651112,-500.0,0.00027671,2]
[356710715,1743000651122,-500.0,0.00027671,2]
[356710716,1743000651132,-500.0,0.00027671,2]
[356710717,1743000651143,-812.02,0.00027671,2]
[356710718,1743000651153,-500.0,0.00027671,2]
[356710719,1743000651163,-500.0,0.00027671,2]
[356710720,1743000651173,-501.27748011,0.00027671,2]
[356710721,1743000651183,-500.0,0.00027671,2]
[356710722,1743000651193,-500.0,0.00027671,2]
[356710723,1743000651203,-500.0,0.00027671,2]
[356710724,1743000651213,-500.0,0.00027671,2]
[356710725,1743000651222,-500.0,0.00027671,2]
[356710726,1743000651232,-162.58095847,0.00027671,2]
[356710727,1743000651242,-151.0,0.00027671,7]
[356710728,1743000651252,-500.0,0.00027671,2]
[356710729,1743000651262,-500.0,0.00027671,2]
[356710730,1743000651272,-500.0,0.00027671,2]
[356710731,1743000651283,-500.0,0.00027671,2]
[356710732,1743000651292,-556.69963738,0.00027671,2]
[356710733,1743000651301,-1702.79,0.00027671,2]
[356710734,1743000651311,-1896.71,0.00027671,2]
[356710735,1743000651320,-500.0,0.00027671,2]
[356710736,1743000651330,-505.02112185,0.00027671,2]
[356710737,1743000651340,-500.0,0.00027671,2]
[356710738,1743000651349,-504.10445765,0.00027671,2]
[356710739,1743000651359,-500.0,0.00027671,2]
[356710740,1743000651368,-730.0,0.00027671,2]
[356710741,1743000651378,-500.0,0.00027671,2]
[356710742,1743000651388,-500.0,0.00027671,2]
[356710743,1743000651397,-199.626427,0.00027671,7]
[356710744,1743000651406,-151.0,0.00027671,7]
[356710745,1743000651417,-500.0,0.00027671,2]
[356710746,1743000651427,-500.0,0.00027671,2]
[356710747,1743000651436,-500.0,0.00027671,2]
[356710748,1743000651449,-500.0,0.00027671,2]
[356710749,1743000651459,-151.0,0.00027671,7]
[356710750,1743000651468,-535.16591228,0.00027671,2]
[356710751,1743000651478,-544.30216521,0.00027671,2]
[356710752,1743000651490,-500.0,0.00027671,2]
[356710753,1743000651503,-151.0,0.00027671,7]
[356710754,1743000651513,-500.0,0.00027671,2]
[356710755,1743000651523,-500.0,0.00027671,2]
[356710756,1743000651535,-500.0,0.00027671,2]
[356710757,1743000651544,-500.0,0.00027671,2]
[356710758,1743000651555,-151.890802,0.00027671,7]
[356710759,1743000651564,-500.0,0.00027671,2]
[356710760,1743000651575,-500.0,0.00027671,2]
[356710761,1743000651584,-1500.0,0.00027671,2]
[356710762,1743000651594,-500.0,0.00027671,2]